bitfinex/quotes_ETHUSD_20250827
["timestamp","ask_amount","ask_price","bid_price","bid_amount"]
[1756287049291,0.2891,4622.5,4622.4,7.00967509]
[1756287050485,0.2891,4622.5,4622.4,7.00985296]
[1756287050917,0.0012,4622.5,4622.4,7.76945296]
[1756287051073,0.0012,4622.5,4622.4,7.00985296]
[1756287051800,0.0012,4622.5,4622.4,7.30495296]
[1756287052007,0.0012,4622.5,4622.4,7.00985296]
[1756287052801,0.0012,4622.5,4622.4,6.13370582]
[1756287053102,0.2891,4622.5,4622.4,6.13370582]
[1756287053604,0.2891,4622.5,4622.4,6.13270582]
[1756287053774,0.2891,4622.5,4622.4,2.47070582]
[1756287053969,0.7374,4622.5,4622.4,6.13270582]
[1756287054407,0.2891,4622.5,4622.4,6.13270582]
[1756287055077,0.0012,4622.5,4622.4,6.13270582]
[1756287055410,0.0012,4622.5,4622.4,7.60387074]
[1756287055707,0.0012,4622.5,4622.4,8.06837074]
[1756287056005,0.0012,4622.5,4622.4,7.60387074]
[1756287056206,0.0012,4622.5,4622.4,7.30877074]
[1756287056514,0.0012,4622.5,4622.4,6.13270582]
[1756287056725,0.0012,4622.5,4622.4,2.47070582]
[1756287057012,0.2891,4622.5,4622.4,6.13270582]
[1756287057610,0.0012,4622.5,4622.4,6.44800582]
[1756287058685,0.0012,4622.5,4622.4,6.90710582]
[1756287058883,0.0012,4622.5,4622.4,7.31434156]
[1756287059078,0.0012,4622.5,4622.4,6.85524156]
[1756287059296,0.0012,4622.5,4622.4,3.19324156]
[1756287059491,0.0012,4622.5,4622.4,6.85524156]
[1756287059705,0.0012,4622.5,4622.4,6.53994156]
[1756287059909,0.0012,4622.5,4622.4,6.85524156]
[1756287060508,0.0012,4622.5,4622.4,7.31434156]
[1756287060715,0.0012,4622.5,4622.4,7.11501407]
[1756287060904,0.0012,4622.5,4622.4,7.3143597]
[1756287062620,0.0012,4622.5,4622.4,10.3143597]
[1756287062984,0.0012,4622.5,4622.4,10.11501407]
[1756287063185,0.0012,4622.5,4622.4,10.31437849]
[1756287063515,0.0012,4622.5,4622.4,10.51740449]
[1756287065022,0.0012,4622.5,4622.4,6.08100449]
[1756287065223,0.0012,4622.5,4622.4,9.74200449]
[1756287065540,0.0012,4622.5,4622.4,10.51640449]
[1756287066389,1e-08,4622.5,4622.4,10.51640449]
[1756287066590,1e-08,4622.5,4622.4,10.40840449]
[1756287066798,1e-08,4622.6,4622.5,5.16333153]
[1756287066998,1e-08,4622.6,4622.5,8.13193121]
[1756287067221,0.02,4623.8,4623.7,2.16277007]
[1756287067425,0.02,4623.8,4623.7,9.22516049]
[1756287067598,0.02,4623.8,4623.7,10.10756049]
[1756287067923,0.02,4623.8,4623.7,11.50100019]
[1756287069230,0.02,4623.8,4623.7,8.50100019]
[1756287070294,0.02,4623.8,4623.7,4.38137352]
[1756287070513,0.3114,4623.8,4623.7,6.33263382]
[1756287070721,0.3114,4623.8,4623.7,4.16986375]
[1756287070918,0.7692,4623.8,4623.7,3.97040913]
[1756287071119,0.7692,4623.8,4623.7,0.31040913]
[1756287071320,0.7692,4623.8,4623.7,0.20240913]
[1756287071523,0.7692,4623.8,4623.7,3.86240913]
[1756287072394,0.7692,4623.8,4623.7,0.20240913]
[1756287072808,2.9319233,4623.8,4623.7,0.20240913]
[1756287073039,0.7692,4623.8,4623.7,0.20240913]
[1756287073241,2.9319233,4623.8,4623.7,0.20240913]
[1756287073402,0.7692,4623.8,4623.7,0.20240913]
[1756287074621,0.7712,4623.8,4623.7,0.20240913]
[1756287075011,0.4206,4623.8,4623.7,0.20240913]
[1756287075815,0.1292,4623.8,4623.7,2.3651792]
[1756287076153,0.1292,4623.8,4623.7,2.7021069]
[1756287076355,0.0212,4623.8,4623.7,2.6804792]
[1756287076654,0.0212,4623.8,4623.7,4.03572318]
[1756287077219,0.0212,4623.8,4623.7,4.05735088]
[1756287078518,0.0212,4623.8,4623.7,4.23422168]
[1756287080523,0.0212,4623.8,4623.7,4.03560577]
[1756287080741,0.0212,4623.8,4623.7,4.23404007]
[1756287081142,0.0212,4623.8,4623.7,4.23402395]
[1756287081674,0.3126,4623.8,4623.7,3.26120577]
[1756287081881,0.3126,4623.8,4623.7,6.02306179]
[1756287083691,0.0212,4623.8,4623.7,6.90546179]
[1756287083894,0.0212,4623.8,4623.7,7.10386944]
[1756287084093,0.0212,4623.8,4623.7,7.10383709]
[1756287085359,0.0212,4623.8,4623.7,10.10383709]
[1756287085559,0.0212,4623.8,4623.7,11.33050602]
[1756287087053,0.0212,4623.8,4623.7,11.41719502]
[1756287087876,0.0212,4623.8,4623.7,11.41619502]
[1756287089166,0.0212,4623.8,4623.7,7.75919502]
[1756287089367,0.0212,4623.8,4623.7,11.41619502]
[1756287090502,0.3223,4623.8,4623.7,0.59535602]
[1756287090801,0.7933,4623.8,4623.7,3.09926406]
[1756287090988,0.7933,4623.8,4623.7,3.85926406]
[1756287091187,0.7933,4623.8,4623.7,0.20226406]
[1756287091390,0.7933,4623.8,4623.7,3.85926406]
[1756287093105,0.7933,4623.8,4623.7,3.85826406]
[1756287094501,0.7933,4623.8,4623.7,0.20226406]
[1756287094699,0.7933,4623.8,4623.7,3.85926406]
[1756287094905,0.995564,4623.8,4623.7,3.85926406]
[1756287095408,0.994764,4623.8,4623.7,3.85926406]
[1756287097790,3.1574873,4623.8,4623.7,3.85926406]
[1756287097994,0.994764,4623.8,4623.7,0.20226406]
[1756287098176,0.994764,4623.8,4623.7,3.85826406]
[1756287099809,0.523764,4623.8,4623.7,3.85826406]
[1756287100600,0.631764,4623.8,4623.7,3.85826406]
[1756287101174,0.631764,4623.8,4623.7,3.8585238]
[1756287101391,3.2654873,4623.8,4623.7,3.8585238]
[1756287102075,1.102764,4623.8,4623.7,0.2025238]
[1756287102378,1.102764,4623.8,4623.7,3.8585238]
[1756287103010,9.4056884,4623.8,4623.7,0.2025238]
[1756287103311,7.2429651,4623.8,4623.7,0.20251007]
[1756287103901,9.4056884,4623.8,4623.7,0.20251007]
[1756287105217,0.631764,4623.8,4623.7,0.20251007]
[1756287107409,0.330664,4623.8,4623.7,0.20251007]
[1756287108307,0.330664,4623.8,4623.7,0.51221007]
[1756287109505,0.330664,4623.8,4623.7,0.20251007]
[1756287111614,0.330664,4623.8,4623.7,0.20249474]
[1756287113545,0.330664,4623.8,4623.7,0.51219474]
[1756287113708,0.330664,4623.8,4623.7,0.20249474]
[1756287114736,0.631764,4623.8,4623.7,0.20249474]
[1756287116739,0.631764,4623.8,4623.7,0.20261165]
[1756287117329,0.330664,4623.8,4623.7,0.20261165]
[1756287117764,0.330664,4623.8,4623.7,3.85761165]
[1756287118758,0.1284,4623.8,4623.7,3.85761165]
[1756287119664,0.1276,4623.8,4623.7,6.95665201]
[1756287119867,0.0196,4623.8,4623.7,7.36532431]
[1756287123768,0.0196,4623.8,4623.7,7.16271266]
[1756287123969,0.002,4624.3,4624.2,2.16253622]
[1756287124138,0.002,4624.3,4624.2,10.93467552]
[1756287124338,0.002,4624.3,4624.2,11.65585016]
[1756287124742,0.002,4624.3,4624.2,11.85839807]
[1756287124964,0.002,4624.3,4624.2,11.96639807]
[1756287125974,0.002,4624.3,4624.2,12.07439807]
[1756287127770,0.002,4624.3,4624.2,12.07402403]
[1756287131176,0.002,4624.3,4624.2,12.07382183]
[1756287131854,0.002,4624.3,4624.2,11.96582183]
[1756287132061,0.002,4624.3,4624.2,11.96578047]
[1756287133058,0.022,4624.8,4624.7,2.16230241]
[1756287133376,0.022,4624.8,4624.7,9.57932278]
[1756287133581,0.022,4624.8,4624.7,10.30049976]
[1756287138891,0.022,4624.8,4624.7,9.86919976]
[1756287139096,0.022,4624.8,4624.7,9.55669976]
[1756287139301,0.022,4624.8,4624.7,9.86919976]
[1756287139467,0.022,4624.8,4624.7,10.29949976]
[1756287140063,0.3349,4624.8,4624.7,5.90469976]
[1756287140384,0.8023,4624.8,4624.7,2.47223272]
[1756287140585,0.8023,4624.8,4624.7,3.96193031]
[1756287140804,0.3349,4624.8,4624.7,6.12423272]
[1756287141188,0.022,4624.8,4624.7,7.69569447]
[1756287141366,0.022,4624.8,4624.7,7.49376416]
[1756287141566,0.022,4624.8,4624.7,7.69553222]
[1756287141886,0.022,4624.8,4624.7,6.95273222]
[1756287142278,0.022,4624.8,4624.7,6.9527698]
[1756287142795,0.3298,4624.8,4624.7,3.3007698]
[1756287142998,0.3298,4624.8,4624.7,6.12410805]
[1756287143187,0.8022,4624.8,4624.7,6.12410805]
[1756287143390,0.3298,4624.8,4624.7,6.12410805]
[1756287144166,0.329,4624.8,4624.7,2.47210805]
[1756287144370,0.8014,4624.8,4624.7,6.12410805]
[1756287144817,6.9416011,4624.8,4622.6,1.663]
[1756287144987,6.1402011,4624.3,4622.6,1.663]
[1756287145303,2.16258298,4624.1,4623.7,0.482]
[1756287145604,0.3129,4623.8,4623.7,0.482]
[1756287146101,0.7803,4623.8,4623.7,0.482]
[1756287146997,0.7803,4623.8,4623.7,1.727]
[1756287147364,0.7803,4623.8,4623.3,2.16292579]
[1756287147568,0.3129,4623.8,4623.7,3.496]
[1756287147879,0.3129,4623.8,4623.7,3.653]
[1756287148074,0.7504,4623.8,4623.7,3.653]
[1756287148699,0.7504,4623.8,4623.7,3.652]
[1756287149583,0.7504,4623.8,4623.2,0.001]
[1756287149779,2.9131233,4623.8,4623.7,3.652]
[1756287149965,0.7504,4623.8,4623.7,3.652]
[1756287151903,2.16277007,4623.7,4623.2,0.001]
[1756287152204,5.16277007,4623.7,4623.2,0.001]
[1756287152506,6.88846332,4623.7,4623.2,0.001]
[1756287153270,2.16295719,4623.3,4623.2,0.001]
[1756287153506,8.32346185,4623.3,4623.2,0.001]
[1756287153808,9.03985829,4623.3,4623.2,0.001]
[1756287154104,9.03985829,4623.3,4622.8,0.02]
[1756287154105,2.16314434,4622.9,4622.8,0.02]
[1756287154403,2.1834479,4622.9,4622.8,0.02]
[1756287154610,5.9201479,4622.9,4622.8,0.02]
[1756287154812,5.89984434,4622.9,4622.8,0.02]
[1756287155199,5.98659534,4622.9,4622.8,0.02]
[1756287155382,6.09459534,4622.9,4622.8,0.02]
[1756287158122,6.433163,4622.9,4622.8,0.02]
[1756287158423,6.433163,4622.9,4621.9,0.001]
[1756287158424,2.16337023,4622.5,4621.9,0.001]
[1756287158722,11.30376665,4622.0,4621.9,0.001]
[1756287158888,5.16361236,4621.9,4621.8,0.001]
[1756287159088,5.16361236,4621.9,4621.5,0.001]
[1756287159089,2.16375281,4621.6,4621.5,0.001]
[1756287159317,9.24425637,4621.6,4621.5,0.001]
[1756287159509,9.66145281,4621.6,4621.5,0.001]
[1756287160520,9.74822681,4621.6,4621.5,0.001]
[1756287162627,9.74822681,4621.6,4620.9,0.001]
[1756287162914,11.32430429,4621.5,4620.9,0.001]
[1756287163128,11.30400073,4621.5,4620.9,0.001]
[1756287163417,12.04070073,4621.5,4620.9,0.001]
[1756287164216,2.16398692,4621.1,4620.9,0.001]
[1756287164417,8.83829048,4621.1,4620.9,0.001]
[1756287164616,9.55468692,4621.1,4620.9,0.001]
[1756287165113,9.89438397,4621.1,4620.9,0.001]
[1756287165630,9.98117197,4621.1,4620.9,0.001]
[1756287165801,9.64247492,4621.1,4620.9,0.001]
[1756287168389,5.25077492,4621.1,4620.9,0.001]
[1756287168594,8.90497492,4621.1,4621.0,0.2951]
[1756287168823,9.54287938,4621.1,4621.0,0.001]
[1756287169527,9.98037938,4621.1,4621.0,0.001]
[1756287170533,9.54287938,4621.1,4621.0,0.001]
[1756287171930,9.98037938,4621.1,4621.0,0.001]
[1756287172438,9.54287938,4621.1,4621.0,0.001]
[1756287173739,5.88787938,4621.1,4621.0,0.001]
[1756287174037,5.58867938,4621.1,4621.0,0.001]
[1756287174239,9.35167938,4621.1,4621.0,0.001]
[1756287174539,9.65087938,4621.1,4621.0,0.001]
[1756287175706,5.99587938,4621.1,4621.0,0.001]
[1756287175906,9.65087938,4621.1,4621.0,0.001]
[1756287176521,10.08837938,4621.1,4621.0,0.001]
[1756287177223,9.74967492,4621.1,4621.0,0.001]
[1756287177734,9.74967492,4621.1,4620.3,1e-08]
[1756287177735,2.16431477,4620.4,4620.3,1e-08]
[1756287177937,2.16431477,4620.4,4617.8,2.18653151]
[1756287177938,3.0,4620.3,4618.3,0.4473]
[1756287178253,11.5942844,4619.4,4618.3,0.4473]
[1756287178420,15.2802844,4619.4,4618.3,0.4473]
[1756287178625,15.7343844,4619.4,4618.3,0.4473]
[1756287178930,16.1816844,4619.4,4618.3,0.4473]
[1756287179740,16.1796844,4619.4,4618.3,0.4473]
[1756287180324,16.51851391,4619.4,4618.3,0.4473]
[1756287180937,16.06441391,4619.4,4618.6,0.4463]
[1756287181255,12.38041391,4619.4,4618.3,0.001]
[1756287181455,16.51751391,4619.4,4618.3,0.001]
[1756287181948,16.06341391,4619.4,4618.5,0.4463]
[1756287182252,16.51751391,4619.4,4618.5,0.4463]
[1756287182438,16.51751391,4619.4,4618.3,0.001]
[1756287182847,16.51751391,4619.4,4619.3,1e-08]
[1756287183351,2.16501764,4618.9,4618.3,0.001]
[1756287183535,13.6745223,4618.9,4618.3,0.001]
[1756287183724,17.39861874,4618.9,4618.3,0.001]
[1756287184048,17.73749907,4618.9,4618.3,0.001]
[1756287184547,17.37024207,4618.9,4618.3,0.001]
[1756287184966,8.77472333,4618.9,4618.8,0.32770001]
[1756287185269,8.77472333,4618.9,4618.8,0.77400001]
[1756287185270,9.27474097,4618.9,4618.8,0.77400001]
[1756287185468,3.086843,4618.9,4618.8,0.77400001]
[1756287185673,6.79214656,4618.9,4618.8,0.77400001]
[1756287185971,6.771843,4618.9,4618.8,0.77400001]
[1756287186257,8.93686064,4618.9,4618.8,0.77400001]
[1756287186662,8.93686064,4618.9,4618.8,0.32770001]
[1756287187128,9.22616064,4618.9,4618.8,0.02000001]
[1756287187322,8.93686064,4618.9,4618.8,0.02000001]
[1756287187529,8.93686064,4618.9,4618.8,0.32770001]
[1756287187754,9.04486064,4618.9,4618.8,0.32770001]
[1756287188156,9.04486064,4618.9,4618.8,0.02000001]
[1756287188157,9.78826064,4618.9,4618.8,0.02000001]
[1756287188383,9.33416064,4618.9,4618.8,0.02000001]
[1756287189061,9.33616064,4618.9,4618.8,0.02000001]
[1756287189228,9.67504045,4618.9,4618.8,0.02000001]
[1756287189561,16.66424045,4618.9,4618.8,0.02000001]
[1756287189985,16.37594045,4618.9,4618.8,0.02000001]
[1756287190773,16.37594045,4618.9,4618.8,0.77400001]
[1756287191860,16.37594045,4618.9,4618.8,0.02000001]
[1756287192059,16.66524045,4618.9,4618.8,0.02000001]
[1756287192627,16.66324045,4618.9,4618.8,0.02000001]
[1756287193045,12.97724045,4618.9,4618.8,0.02000001]
[1756287193251,16.66244045,4618.9,4618.8,0.02000001]
[1756287194152,16.37314045,4618.9,4618.8,0.32770001]
[1756287194353,16.37514045,4618.9,4618.8,0.02000001]
[1756287194546,16.66444045,4618.9,4618.8,0.02000001]
[1756287195457,12.68714045,4618.9,4618.8,0.32770001]
[1756287195655,16.37514045,4618.9,4618.8,0.77400001]
[1756287195852,16.37514045,4618.9,4618.8,0.32770001]
[1756287196272,16.37514045,4618.9,4618.8,0.02000001]
[1756287196559,16.37414045,4618.9,4618.8,0.02000001]
[1756287197970,12.68714045,4618.9,4618.8,0.02000001]
[1756287198141,16.37314045,4618.9,4618.8,0.02000001]
[1756287199133,16.37314045,4618.9,4618.8,0.32770001]
[1756287199335,14.20712281,4618.9,4618.8,0.77400001]
[1756287199567,11.20792281,4618.9,4618.8,0.77400001]
[1756287199765,11.12207981,4618.9,4618.8,0.77400001]
[1756287200464,7.43607981,4618.9,4618.8,0.77400001]
[1756287200772,7.0972,4618.9,4618.8,2.93906452]
[1756287200946,7.0972,4618.9,4618.8,0.77400001]
[1756287201348,7.0972,4618.9,4618.8,2.93906452]
[1756287201546,7.0972,4618.9,4618.8,3.1412196]
[1756287202461,7.0972,4618.9,4618.8,0.97615509]
[1756287202858,7.0972,4618.9,4618.8,3.1412196]
[1756287202859,0.108,4618.9,4618.8,3.1412196]
[1756287203057,0.108,4618.9,4618.8,3.45534501]
[1756287203956,0.002,4619.4,4619.3,2.16483016]
[1756287204156,0.11,4619.4,4619.3,3.10765801]
[1756287204377,0.11,4619.4,4619.3,3.55395801]
[1756287204749,0.11,4619.4,4619.3,0.50985508]
[1756287205161,0.11,4619.4,4619.3,0.95615508]
[1756287205549,0.11,4619.4,4619.3,3.12098524]
[1756287205859,0.002,4619.4,4619.3,3.12098524]
[1756287206670,0.002,4619.4,4619.3,3.42749071]
[1756287206981,0.002,4619.4,4619.3,3.9867313]
[1756287208265,0.002,4619.4,4619.3,3.78822583]
[1756287208661,0.002,4619.4,4619.3,3.12098524]
[1756287208880,0.11,4619.4,4619.3,3.12098524]
[1756287210097,0.002,4619.4,4619.3,3.12098524]
[1756287211295,0.002,4619.4,4619.3,3.12110116]
[1756287212512,0.002,4619.4,4619.3,3.1210136]
[1756287212713,0.002,4619.4,4619.3,4.01830697]
[1756287214399,0.002,4619.4,4619.3,3.1210136]
[1756287214769,0.002,4619.4,4619.3,3.1262136]
[1756287215094,0.002,4619.4,4619.3,3.2342136]
[1756287217607,0.0012,4619.4,4619.3,3.2342136]
[1756287218106,0.0012,4619.4,4619.3,2.7827136]
[1756287218282,0.0012,4619.4,4619.3,7.40797697]
[1756287219520,0.002,4619.9,4619.4,5.1647833]
[1756287219670,0.002,4619.9,4619.8,0.108]
[1756287219871,0.002,4619.9,4619.8,5.94548344]
[1756287220071,0.002,4619.9,4619.8,8.5615793]
[1756287220296,0.002,4619.9,4619.8,9.9342015]
[1756287220498,0.002,4620.4,4620.3,2.16436162]
[1756287220705,0.002,4620.4,4620.3,9.05054506]
[1756287221005,0.002,4620.4,4620.3,9.89734506]
[1756287222074,0.002,4620.4,4620.3,9.78934506]
[1756287222306,0.002,4620.4,4620.3,11.09272236]
[1756287223910,1e-08,4620.4,4620.3,11.09272236]
[1756287224412,1e-08,4620.4,4620.3,11.09472236]
[1756287226318,1e-08,4620.4,4620.3,11.09432056]
[1756287228318,1e-08,4620.4,4620.3,11.25679368]
[1756287229847,1e-08,4620.8,4620.7,2.16417425]
[1756287230008,1e-08,4620.8,4620.7,16.85613349]
[1756287230339,1e-08,4620.8,4620.7,17.70293349]
[1756287230515,1e-08,4620.8,4620.7,17.78966749]
[1756287232310,0.02,4621.8,4621.7,2.16370599]
[1756287232518,0.02,4621.8,4621.7,7.93380696]
[1756287232822,0.3148,4621.8,4621.7,8.04180696]
[1756287233223,0.7759,4621.8,4621.7,4.02936431]
[1756287233400,0.7759,4621.8,4621.7,7.71636431]
[1756287233801,0.7759,4621.8,4621.7,4.02936431]
[1756287234027,0.65338175,4621.8,4621.7,7.71639867]
[1756287234240,0.3148,4621.8,4621.7,7.71639867]
[1756287235790,0.02,4621.8,4621.7,8.71521817]
[1756287235995,0.02,4621.8,4621.7,9.00251817]
[1756287236229,0.02,4621.8,4621.7,9.45401817]
[1756287237103,0.02,4621.8,4621.7,12.25232549]
[1756287237509,0.02,4621.8,4621.7,12.4540382]
[1756287237941,0.02,4621.8,4621.7,12.25232549]
[1756287238106,0.02,4621.8,4621.7,12.45401297]
[1756287238704,0.3264,4621.8,4621.7,11.71421297]
[1756287238938,0.7836,4621.8,4621.7,4.02939347]
[1756287239240,0.7836,4621.8,4621.7,7.71539347]
[1756287239631,0.7836,4621.8,4621.7,4.02939347]
[1756287239826,0.7836,4621.8,4621.7,7.71639347]
[1756287240431,0.7836,4621.8,4621.7,4.02939347]
[1756287240629,0.7836,4621.8,4621.7,7.71639347]
[1756287240837,0.7836,4621.8,4621.7,5.55168748]
[1756287241151,0.02,4621.8,4621.7,8.02799347]
[1756287241440,0.3264,4621.8,4621.7,7.95384727]
[1756287241603,0.7836,4621.8,4621.7,7.71539347]
[1756287242109,0.7828,4621.8,4621.7,3.88768748]
[1756287242739,0.7828,4621.8,4621.7,6.05139347]
[1756287242948,0.0192,4621.8,4621.7,6.96913282]
[1756287243246,0.0192,4621.8,4621.7,7.43883282]
[1756287243945,0.0192,4621.8,4621.7,10.23714534]
[1756287244510,1e-08,4621.9,4621.8,2.16365918]
[1756287244748,1e-08,4622.4,4622.3,2.16342513]
[1756287244946,1e-08,4622.4,4622.3,16.99588825]
[1756287245146,1e-08,4622.4,4622.3,19.55739111]
[1756287245345,1e-08,4622.4,4622.3,13.41116224]
[1756287245578,0.4572,4624.5,4623.7,2.16277007]
[1756287245783,0.4572,4624.5,4623.7,7.51477007]
[1756287246436,0.4572,4624.5,4623.7,7.82737007]
[1756287246831,0.4572,4624.5,4623.7,7.51477007]
[1756287248300,0.4572,4624.5,4623.7,8.48253111]
[1756287249183,0.4572,4624.5,4623.7,8.79513111]
[1756287249386,0.7836,4623.8,4623.7,5.84877007]
[1756287249754,0.3264,4623.8,4623.7,5.84877007]
[1756287249955,0.3264,4623.8,4623.7,5.85077007]
[1756287250584,0.02,4623.8,4623.7,6.63307007]
[1756287250788,0.02,4623.8,4623.7,7.51266262]
[1756287252152,0.02,4623.8,4623.7,10.70990863]
[1756287252579,0.02,4623.8,4623.7,10.24120863]
[1756287253050,0.02,4623.8,4623.7,10.34920863]
[1756287253278,0.02,4623.8,4623.7,10.14624826]
[1756287253476,0.02,4623.8,4623.7,6.45726626]
[1756287253686,0.02,4623.8,4623.7,9.83366626]
[1756287253881,0.02,4623.8,4623.7,9.63649418]
[1756287254090,0.02,4623.8,4623.7,9.94809418]
[1756287254271,0.02,4623.8,4623.7,6.45687854]
[1756287254473,0.02,4623.8,4623.7,10.14387854]
[1756287254672,0.02,4623.8,4623.7,6.45687854]
[1756287254890,0.02,4623.8,4623.7,10.14387854]
[1756287255198,0.02,4623.8,4623.7,9.94709418]
[1756287255674,0.02,4623.8,4623.7,10.14380714]
[1756287255874,0.02,4623.8,4623.7,6.45680714]
[1756287256291,0.02,4623.8,4623.7,10.14280714]
[1756287257176,0.02,4623.8,4623.7,10.61250714]
[1756287257512,0.02,4623.8,4623.7,10.14280714]
[1756287257685,0.02,4623.8,4623.7,10.61250714]
[1756287258071,0.02,4623.8,4623.7,10.14280714]
[1756287258370,0.02,4623.8,4623.7,10.61250714]
[1756287259167,0.002,4624.7,4623.9,2.16267652]
[1756287259399,0.002,4624.7,4624.6,2.27034917]
[1756287259670,0.002,4624.7,4624.6,9.49116284]
[1756287259867,0.002,4624.7,4624.6,5.46693935]
[1756287260072,0.3084,4624.7,4624.6,9.15593935]
[1756287260305,0.3084,4624.7,4624.6,8.95934917]
[1756287260998,0.3084,4624.7,4624.6,5.95934917]
[1756287263127,0.3084,4624.7,4624.6,2.27034917]
[1756287263631,0.3084,4624.7,4624.6,5.95734917]
[1756287263932,0.7656,4624.7,4624.6,5.84934917]
[1756287265118,0.3084,4624.7,4624.6,5.84934917]
[1756287265717,0.7656,4624.7,4624.6,5.84934917]
[1756287266005,0.7656,4624.7,4624.6,3.686]
[1756287266206,0.7656,4624.7,4624.2,2.27049796]
[1756287266207,0.7656,4624.7,4624.3,2.1624761]
[1756287266539,0.1072,4624.5,4624.4,3.685]
[1756287266835,0.8708,4624.5,4624.4,3.685]
[1756287267131,0.4136,4624.5,4624.4,5.84744269]
[1756287267536,0.4136,4624.5,4624.1,2.16254882]
[1756287267838,0.446,4624.4,4624.0,1.663]
[1756287268137,0.1072,4624.5,4624.1,3.684]
[1756287268308,0.1072,4624.5,4624.2,2.16249626]
[1756287268504,0.1072,4624.5,4624.3,5.84546914]
[1756287268998,0.1072,4624.5,4624.4,2.16244269]
[1756287269403,0.4009,4624.5,4624.4,2.16244269]
[1756287269602,0.4009,4624.5,4624.3,3.683]
[1756287270035,0.4009,4624.5,4624.3,5.84548234]
[1756287270538,0.4009,4624.5,4624.3,3.683]
[1756287271005,0.4009,4624.5,4624.3,5.84548499]
[1756287271654,0.4009,4624.5,4624.3,3.683]
[1756287271838,0.4009,4624.5,4624.4,3.682]
[1756287275660,2.16244269,4624.4,4624.0,1.663]
[1756287275824,0.46630356,4624.3,4623.6,0.001]
[1756287276024,0.108,4623.9,4623.7,3.678]
[1756287276245,0.7397,4623.8,4623.7,3.678]
[1756287276572,2.9024233,4623.8,4623.7,3.678]
[1756287276776,0.7397,4623.8,4623.7,3.678]
[1756287276954,0.2937,4623.8,4623.7,3.678]
[1756287277354,0.7397,4623.8,4623.7,3.678]
[1756287277585,0.7397,4623.8,4623.6,0.001]
[1756287277785,2.9024233,4623.8,4623.7,3.678]
[1756287278444,2.16277007,4623.7,4623.6,0.001]
[1756287278742,2.60877007,4623.7,4623.6,0.001]
[1756287279073,2.90247007,4623.7,4623.6,0.001]
[1756287279774,2.92277363,4623.7,4623.6,0.001]
[1756287281083,9.57947007,4623.7,4623.6,0.001]
[1756287281599,9.57947007,4623.7,4623.6,1e-08]
[1756287283274,2.16295719,4623.3,4623.2,1e-08]
[1756287283474,2.18326075,4623.3,4623.2,1e-08]
[1756287283656,6.03096075,4623.3,4623.2,1e-08]
[1756287283840,6.01065719,4623.3,4623.2,1e-08]
[1756287285251,9.68765719,4623.3,4623.2,1e-08]
[1756287287095,5.16300397,4623.2,4623.1,1e-08]
[1756287287261,9.28400397,4623.2,4623.1,1e-08]
[1756287287462,16.56690397,4623.2,4623.1,1e-08]
[1756287289058,2.16319113,4622.8,4622.7,1e-08]
[1756287289258,5.16323793,4622.7,4622.6,1e-08]
[1756287289458,5.90293793,4622.7,4622.6,1e-08]
[1756287289709,5.90293793,4622.7,4621.2,0.001]
[1756287289710,2.16361236,4621.9,4621.2,0.001]
[1756287289991,5.96691592,4621.9,4621.2,0.001]
[1756287290195,6.68631236,4621.9,4621.2,0.001]
[1756287290394,9.68631236,4621.9,4621.2,0.001]
[1756287290610,11.35031236,4621.9,4621.2,0.001]
[1756287291269,11.34951236,4621.9,4621.8,1e-08]
[1756287291705,11.43629636,4621.9,4621.8,1e-08]
[1756287292317,10.99029636,4621.9,4621.8,1e-08]
[1756287292819,11.43629636,4621.9,4621.8,1e-08]
[1756287293188,10.99029636,4621.9,4621.8,1e-08]
[1756287293911,10.98929636,4621.9,4621.8,1e-08]
[1756287294076,11.43529636,4621.9,4621.8,1e-08]
[1756287296907,10.98929636,4621.9,4621.8,1e-08]
[1756287297120,11.43529636,4621.9,4621.8,1e-08]
[1756287297298,7.76129636,4621.9,4621.8,1e-08]
[1756287297487,18.42249636,4621.9,4621.8,1e-08]
[1756287298183,14.30449636,4621.9,4621.8,1e-08]
[1756287298384,17.97649636,4621.9,4621.8,1e-08]
[1756287300499,18.41309636,4621.9,4621.8,1e-08]
[1756287301112,17.97649636,4621.9,4621.8,1e-08]
[1756287301485,18.41309636,4621.9,4621.8,1e-08]
[1756287302291,31.84716036,4621.9,4621.8,1e-08]
[1756287302497,28.17516036,4621.9,4621.8,1e-08]
[1756287302698,31.84516036,4621.9,4621.8,1e-08]
[1756287303021,2.16389327,4621.3,4621.2,0.001]
[1756287303315,2.16412742,4620.8,4620.7,0.001]
[1756287303623,10.91163098,4620.8,4620.7,0.001]
[1756287303808,11.32792742,4620.8,4620.7,0.001]
[1756287304011,7.22232742,4620.8,4620.7,0.001]
[1756287304193,10.89232742,4620.8,4620.7,0.001]
[1756287304393,17.88152742,4620.8,4620.7,0.001]
[1756287304691,17.88152742,4620.8,4620.7,1e-08]
[1756287304926,18.31812742,4620.8,4620.7,1e-08]
[1756287305119,14.21152742,4620.8,4620.7,1e-08]
[1756287305286,12.15332742,4620.8,4620.7,0.75370001]
[1756287305618,0.108,4620.8,4620.7,0.75370001]
[1756287306099,2.27212742,4620.8,4620.7,0.75370001]
[1756287306304,2.29243098,4620.8,4620.7,0.75370001]
[1756287306503,8.97343098,4620.8,4620.7,0.31650001]
[1756287306705,9.23932742,4620.8,4620.7,1e-08]
[1756287307325,8.95312742,4620.8,4620.7,1e-08]
[1756287307632,9.23932742,4620.8,4620.7,1e-08]
[1756287308204,2.16450216,4620.0,4619.9,0.43612001]
[1756287308410,2.29280572,4620.0,4619.9,0.43612001]
[1756287308613,2.29280572,4620.0,4619.9,0.75262001]
[1756287309328,2.29280572,4620.0,4619.9,0.3165]
[1756287310038,8.98180572,4620.0,4619.9,0.3165]
[1756287310236,8.96150216,4620.0,4619.9,0.3165]
[1756287310442,8.96150216,4620.0,4619.9,0.7537]
[1756287310933,5.27250216,4620.0,4619.9,0.7537]
[1756287311299,0.108,4620.0,4619.9,0.7537]